bitfinex/quotes_SOLUSD_20240624
["timestamp","ask_amount","ask_price","bid_price","bid_amount"]
[1719207401541,22.84,124.49,124.43,1.8494271]
[1719207401742,22.84,124.49,124.39,1.8494271]
[1719207402256,22.84,124.5,124.39,1.8494271]
[1719207402430,22.84,124.46,124.39,1.8494271]
[1719207402630,22.84,124.5,124.41,1.8494271]
[1719207402835,22.84,124.5,124.43,1.8494271]
[1719207403253,22.84,124.5,124.46,1.8494271]
[1719207405637,0.49149324,124.54,124.46,1.8494271]
[1719207405833,22.84,124.51,124.46,1.8494271]
[1719207406534,22.84,124.48,124.38,1.8494271]
[1719207406749,22.84,124.48,124.44,1.8494271]
[1719207406946,22.84,124.5,124.44,1.8494271]
[1719207407342,22.84,124.5,124.41,1.8494271]
[1719207407541,22.84,124.47,124.41,1.8494271]
[1719207407744,22.84,124.5,124.41,1.8494271]
[1719207408437,22.84,124.5,124.46,1.8494271]
[1719207408635,22.84,124.5,124.48,1.8494271]
[1719207408862,22.84,124.5,124.45,1.8494271]
[1719207409364,22.84,124.52,124.49,1.8494271]
[1719207409663,22.84,124.52,124.45,1.8494271]
[1719207410165,22.84,124.48,124.39,1.8494271]
[1719207410458,22.84,124.48,124.41,1.8494271]
[1719207410657,22.84,124.5,124.41,1.8494271]
[1719207412165,79.2505729,124.56,124.43,1.8494271]
[1719207412355,22.84,124.5,124.43,1.8494271]
[1719207413173,22.84,124.47,124.43,1.8494271]
[1719207414182,22.84,124.47,124.41,1.8494271]
[1719207416058,22.84,124.5,124.43,1.8494271]
[1719207416952,22.84,124.5,124.34,6.6204]
[1719207416953,22.84,124.5,124.41,1.8494271]
[1719207417143,22.84,124.47,124.41,1.8494271]
[1719207417573,22.84,124.47,124.43,1.8494271]
[1719207417780,22.84,124.5,124.43,1.8494271]
[1719207418952,22.84,124.5,124.41,1.8494271]
[1719207419151,22.84,124.47,124.41,1.8494271]
[1719207422056,22.84,124.5,124.43,1.8494271]
[1719207422775,22.84,124.5,124.41,1.8494271]
[1719207422981,22.84,124.45,124.41,1.8494271]
[1719207424565,22.84,124.5,124.37,6.6024]
[1719207424566,71.1,124.5,124.37,6.6024]
[1719207424778,22.84,124.42,124.37,6.6024]
[1719207425781,22.84,124.42,124.35,1.8494271]
[1719207426163,22.84,124.45,124.35,1.8494271]
[1719207426367,6.47177623,124.54,124.45,1.8494271]
[1719207426574,22.84,124.5,124.45,1.8494271]
[1719207427483,22.84,124.5,124.46,6.1062]
[1719207427674,45.68,124.5,124.4,1.8494271]
[1719207428459,22.84,124.5,124.4,1.8494271]
[1719207429095,22.84,124.56,124.45,1.8494271]
[1719207429260,22.84,124.52,124.46,6.0661]
[1719207429759,22.84,124.49,124.45,1.8494271]
[1719207429964,22.84,124.49,124.4,1.8494271]
[1719207430164,22.84,124.49,124.42,1.8494271]
[1719207430865,22.84,124.49,124.36,1.8494271]
[1719207431096,22.84,124.43,124.38,6.0741]
[1719207431459,22.84,124.46,124.39,1.8494271]
[1719207431763,22.84,124.46,124.42,1.8494271]
[1719207432371,22.84,124.46,124.38,6.0741]
[1719207432762,22.84,124.5,124.38,6.0741]
[1719207432763,22.87,124.44,124.38,6.0741]
[1719207432969,22.87,124.44,124.39,1.8494271]
[1719207434185,22.87,124.41,124.38,6.0741]
[1719207434377,22.87,124.41,124.35,17.3962271]
[1719207435365,22.87,124.41,124.35,1.8494271]
[1719207435570,22.87,124.41,124.32,6.4748]
[1719207436362,22.87,124.44,124.32,16.4748]
[1719207436677,22.87,124.5,124.32,16.4748]
[1719207436678,22.86,124.47,124.34,6.4748]
[1719207437254,22.86,124.47,124.37,6.4748]
[1719207437455,22.86,124.5,124.38,0.34]
[1719207437986,22.86,124.5,124.37,6.4748]
[1719207438193,22.86,124.47,124.37,6.4748]
[1719207439067,22.86,124.43,124.37,6.4748]
[1719207440775,22.86,124.46,124.37,6.4748]
[1719207442071,22.86,124.43,124.33,6.3847]
[1719207442294,22.86,124.44,124.33,6.3847]
[1719207442295,22.86,124.4,124.33,6.3847]
[1719207446569,22.86,124.44,124.33,6.3847]
[1719207446768,39.2928,124.44,124.34,0.34]
[1719207447086,39.2928,124.44,124.33,6.3847]
[1719207447291,22.86,124.41,124.33,6.3847]
[1719207447966,22.86,124.38,124.33,6.3847]
[1719207449087,22.86,124.38,124.25,22.4483]
[1719207449293,22.86,124.35,124.25,22.4483]
[1719207451195,30.0,124.37,124.25,22.4483]
[1719207452895,30.0,124.34,124.25,22.4483]
[1719207454903,22.86,124.32,124.25,22.4483]
[1719207456300,30.0,124.31,124.25,6.4576]
[1719207456683,22.92,124.3,124.25,6.4576]
[1719207457904,22.92,124.3,124.24,13.85674266]
[1719207457905,22.92,124.27,124.24,13.85674266]
[1719207458693,30.0,124.29,124.21,4.08513782]
[1719207458694,52.92,124.29,124.21,4.08513782]
[1719207458983,30.0,124.26,124.21,4.08513782]
[1719207459181,22.92,124.29,124.21,4.08513782]
[1719207459383,71.18,124.32,124.21,4.08513782]
[1719207459384,22.92,124.25,124.21,4.08513782]
[1719207460315,75.0,124.24,124.2,9.8874421]
[1719207460497,22.92,124.21,124.19,9.8469826]
[1719207460696,22.92,124.21,124.14,6.3103]
[1719207460897,22.92,124.18,124.12,29.60075394]
[1719207461108,22.92,124.2,124.12,29.60075394]
[1719207461601,22.92,124.2,124.12,12.93645394]
[1719207461915,22.92,124.15,124.12,12.43645394]
[1719207462500,30.0,124.13,124.1,2.64808728]
[1719207462698,23.0,124.11,124.1,2.64808728]
[1719207462899,23.0,124.11,124.07,1.86775787]
[1719207464102,23.0,124.14,124.07,1.86775787]
[1719207464622,93.61176645,124.2,124.07,1.86775787]
[1719207464789,23.0,124.14,124.07,1.86775787]
[1719207464995,23.0,124.11,124.07,1.86775787]
[1719207465415,23.0,124.14,124.07,1.86775787]
[1719207465899,23.0,124.17,124.07,1.86775787]
[1719207466292,23.0,124.17,124.09,21.5998]
[1719207466293,21.204403,124.15,124.09,21.5998]
[1719207466608,23.0,124.17,124.09,21.5998]
[1719207466792,44.5998,124.17,124.09,21.5998]
[1719207467103,23.0,124.17,124.09,21.5998]
[1719207467806,23.46276645,124.2,124.09,21.5998]
[1719207467993,23.0,124.2,124.1,0.34]
[1719207468197,21.5998,124.22,124.11,11.687]
[1719207468414,21.5998,124.22,124.12,60.9793]
[1719207468618,23.0,124.26,124.13,15.2202]
[1719207468788,46.0,124.26,124.15,6.4644]
[1719207468987,23.0,124.26,124.17,15.2202]
[1719207469192,23.0,124.32,124.19,6.4644]
[1719207469413,23.0,124.32,124.2,10.34]
[1719207469592,23.0,124.32,124.2,0.34]
[1719207469789,23.0,124.32,124.2,45.34]
[1719207470010,23.0,124.29,124.11,6.4644]
[1719207470191,23.0,124.23,124.11,6.4644]
[1719207470391,23.0,124.23,124.12,5.6396]
[1719207470615,23.0,124.26,124.11,16.4644]
[1719207470804,23.0,124.29,124.15,20.7814]
[1719207471000,23.0,124.29,124.15,15.1435]
[1719207471403,23.0,124.29,124.16,6.29]
[1719207471818,23.0,124.29,124.17,45.34]
[1719207472723,23.0,124.29,124.16,6.29]
[1719207473034,30.8572,124.31,124.16,6.29]
[1719207473035,23.0,124.26,124.16,6.29]
[1719207473191,23.0,124.29,124.16,11.9276]
[1719207473395,23.0,124.32,124.16,6.29]
[1719207473695,23.0,124.29,124.16,6.29]
[1719207474108,23.0,124.29,124.17,0.17]
[1719207474324,23.0,124.29,124.17,45.34]
[1719207475294,23.0,124.26,124.16,6.29]
[1719207477720,23.0,124.26,124.17,0.17]
[1719207477919,23.0,124.26,124.16,6.29]
[1719207480306,23.0,124.23,124.16,6.29]
[1719207480529,23.0,124.2,124.16,6.29]
[1719207481423,23.0,124.2,124.11,15.7114]
[1719207481622,23.0,124.2,124.12,6.2699]
[1719207482341,23.0,124.26,124.12,6.2699]
[1719207482641,23.0,124.26,124.15,15.8133]
[1719207483138,23.0,124.26,124.16,0.17]
[1719207483308,23.0,124.26,124.16,45.0]
[1719207484018,23.0,124.26,124.15,16.1533]
[1719207484226,23.0,124.26,124.16,45.0]
[1719207484835,23.0,124.29,124.18,6.5193]
[1719207485842,23.0,124.29,124.19,45.17]
[1719207486045,23.0,124.32,124.2,0.17]
[1719207486253,23.0,124.32,124.15,15.8133]
[1719207486254,23.0,124.21,124.15,15.8133]
[1719207486549,23.0,124.21,124.14,6.3353]
[1719207486846,23.0,124.18,124.14,6.3353]
[1719207487142,23.0,124.18,124.1,21.5936]
[1719207488550,23.0,124.14,124.1,21.5936]
[1719207489645,23.0,124.14,124.1,6.3191]
[1719207490234,23.0,124.14,124.08,9.14963322]
[1719207491657,23.0,124.2,124.08,9.14963322]
[1719207492030,23.0,124.2,124.09,6.5559]
[1719207492356,23.0,124.22,124.1,15.5038]
[1719207492722,23.0,124.23,124.1,15.5038]
[1719207492923,38.5038,124.23,124.1,15.5038]
[1719207493139,38.5038,124.23,124.11,0.17]
[1719207493349,23.0,124.23,124.1,15.5038]
[1719207493725,15.5038,124.22,124.1,15.5038]
[1719207494422,23.0,124.23,124.11,0.17]
[1719207494619,23.0,124.23,124.11,0.34]
[1719207494836,38.5038,124.23,124.12,6.0575]
[1719207495024,23.0,124.23,124.12,6.0575]
[1719207495238,23.0,124.23,124.13,0.17]
[1719207495422,23.0,124.23,124.13,0.34]
[1719207496125,23.0,124.23,124.12,6.0575]
[1719207497154,23.0,124.26,124.12,6.0575]
[1719207497155,23.0,124.2,124.12,6.0575]
[1719207497837,23.0,124.23,124.12,6.0575]
[1719207499133,23.0,124.23,124.13,0.17]
[1719207499848,23.0,124.23,124.14,16.3223]
[1719207500338,23.0,124.23,124.15,0.17]
[1719207500535,23.0,124.23,124.15,0.34]
[1719207500741,23.0,124.23,124.14,16.3223]
[1719207500944,23.0,124.26,124.15,0.34]
[1719207501857,0.47006252,124.31,124.18,6.6056]
[1719207502042,23.0,124.34,124.21,5.6355]
[1719207502250,33.0,124.34,124.23,6.6046]
[1719207502737,23.0,124.34,124.23,6.6046]
[1719207503235,23.0,124.34,124.24,0.34]
[1719207503430,23.0,124.34,124.23,6.6046]
[1719207504373,23.0,124.34,124.24,0.17]
[1719207504657,23.0,124.34,124.25,16.2453]
[1719207506464,23.0,124.38,124.26,6.9664]
[1719207507364,23.0,124.41,124.26,12.5996]
[1719207508261,23.0,124.41,124.26,6.9664]
[1719207508448,23.0,124.37,124.26,6.6264]
[1719207508649,23.0,124.34,124.26,6.6264]
[1719207509849,45.0,124.33,124.22,6.1686]
[1719207510071,23.0,124.31,124.22,6.1686]
[1719207510541,23.0,124.37,124.22,11.8033]
[1719207510739,23.0,124.38,124.22,11.8033]
[1719207510941,23.0,124.38,124.22,6.1686]
[1719207511154,23.0,124.38,124.23,0.34]
[1719207511371,23.0,124.38,124.25,16.6519]
[1719207511666,23.0,124.38,124.27,6.1163]
[1719207511868,23.0,124.38,124.28,0.34]
[1719207513264,23.0,124.38,124.27,6.1163]
[1719207513456,23.0,124.33,124.27,6.1163]
[1719207513764,23.0,124.3,124.25,16.6519]
[1719207513947,23.0,124.32,124.25,16.6519]
[1719207514267,45.0,124.31,124.23,6.4926]
[1719207514478,23.0,124.28,124.23,6.4926]
[1719207515060,45.0,124.27,124.23,6.4926]
[1719207515365,45.0,124.31,124.17,6.0326]
[1719207515564,23.0,124.25,124.17,6.0326]
[1719207515865,23.0,124.22,124.17,6.0326]
[1719207516451,45.0,124.21,124.17,6.0326]
[1719207516649,23.0,124.22,124.17,6.0326]
[1719207517586,23.0,124.25,124.17,6.0326]
[1719207520479,23.0,124.28,124.17,6.0326]
[1719207521162,23.0,124.28,124.18,0.34]
[1719207522657,23.0,124.32,124.18,0.34]
[1719207523757,46.0,124.32,124.18,0.34]
[1719207525276,45.0,124.31,124.17,6.0326]
[1719207525471,23.0,124.27,124.17,6.0326]
[1719207525863,45.0,124.26,124.17,6.0326]
[1719207526570,23.0,124.27,124.17,6.0326]
[1719207527561,23.0,124.27,124.18,0.34]
[1719207528150,23.0,124.27,124.17,6.0326]
[1719207529155,45.0,124.26,124.17,6.0326]
[1719207529561,23.0,124.24,124.17,6.0326]
[1719207530654,23.0,124.27,124.17,6.0326]
[1719207532181,45.0,124.26,124.17,6.0326]
[1719207534458,23.0,124.27,124.17,6.0326]
[1719207535075,23.0,124.26,124.17,6.0326]
[1719207535382,45.0,124.25,124.17,6.0326]
[1719207536288,23.0,124.26,124.17,6.0326]
[1719207541703,23.0,124.26,124.18,0.17]
[1719207541902,23.0,124.26,124.17,6.0326]
[1719207542197,6.95602839,124.31,124.18,0.17]
[1719207542506,29.95602839,124.31,124.18,0.34]
[1719207542679,22.92,124.3,124.18,0.34]
[1719207543202,22.92,124.26,124.17,6.0326]
[1719207543996,45.0,124.25,124.17,6.0326]
[1719207544297,22.92,124.26,124.17,6.0326]
[1719207544792,6.95602839,124.31,124.17,6.0326]
[1719207544999,22.92,124.28,124.18,0.34]
[1719207546882,22.92,124.28,124.17,6.0326]
[1719207547301,22.92,124.28,124.18,0.17]
[1719207547894,45.0,124.27,124.18,0.17]
[1719207548270,45.0,124.27,124.17,6.0326]
[1719207549105,22.92,124.28,124.17,6.0326]
[1719207549690,45.0,124.27,124.17,6.0326]
[1719207549912,45.0,124.27,124.18,0.34]
[1719207550410,22.92,124.28,124.18,0.34]
[1719207552399,22.92,124.28,124.18,0.17]
[1719207552701,22.92,124.28,124.17,6.0326]
[1719207553006,5.9313,124.29,124.17,6.0326]
[1719207553007,22.92,124.24,124.17,6.0326]
[1719207554076,45.0,124.27,124.17,6.0326]
[1719207554391,67.92,124.27,124.17,6.0326]
[1719207554808,22.92,124.27,124.17,6.0326]
[1719207555007,52.31970425,124.32,124.2,6.1274]
[1719207555008,45.92,124.32,124.2,6.1274]
[1719207555505,45.92,124.32,124.21,0.34]
[1719207556186,22.92,124.32,124.21,0.34]
[1719207556389,6.32349489,124.34,124.22,22.7168]
[1719207556702,39.5094,124.36,124.23,0.34]
[1719207557004,39.5094,124.36,124.24,6.1601]
[1719207557208,39.5094,124.36,124.25,0.34]
[1719207557581,39.5094,124.36,124.24,6.1601]
[1719207557982,45.8130404,124.36,124.24,6.1601]
[1719207558177,22.92,124.32,124.24,6.1601]
[1719207558404,45.0,124.31,124.24,6.1601]
[1719207563219,22.92,124.32,124.24,6.1601]
[1719207564801,22.8930404,124.36,124.25,0.34]
[1719207565123,22.8930404,124.36,124.24,6.1601]
[1719207565293,22.92,124.34,124.24,6.1601]
[1719207566096,45.0,124.33,124.24,6.1601]
[1719207567403,22.92,124.34,124.24,6.1601]
[1719207567912,45.0,124.33,124.24,6.1601]
[1719207571025,22.92,124.34,124.24,6.1601]
[1719207571318,45.0,124.33,124.24,6.1601]
[1719207572224,22.92,124.34,124.24,6.1601]
[1719207572427,22.92,124.34,124.26,15.8333]
[1719207576319,45.0,124.33,124.26,15.8333]
[1719207576629,22.92,124.31,124.26,15.8333]
[1719207576931,45.0,124.3,124.26,13.83337724]
[1719207579656,45.0,124.3,124.24,6.1601]
[1719207584716,45.0,124.3,124.23,15.892]
[1719207584717,22.92,124.28,124.23,15.892]
[1719207584914,45.0,124.27,124.13,15.6555]
[1719207585316,22.92,124.25,124.13,15.6555]
[1719207585511,45.0,124.24,124.13,15.6555]
[1719207586214,22.92,124.22,124.13,15.6555]
[1719207587239,22.92,124.26,124.13,15.6555]
[1719207587448,22.92,124.23,124.13,15.6555]
[1719207587617,45.0,124.22,124.14,6.1309]
[1719207587812,22.92,124.26,124.14,6.1309]
[1719207588011,45.0,124.25,124.14,6.1309]
[1719207588448,45.0,124.25,124.15,0.17]
[1719207588613,116.5894,124.36,124.18,6.3489]
[1719207588817,22.92,124.29,124.19,0.17]
[1719207589131,22.92,124.29,124.19,0.34]
[1719207589322,29.04230101,124.33,124.21,16.1863]
[1719207589323,6.47620101,124.33,124.21,16.1863]
[1719207589623,22.92,124.32,124.22,6.6515]
[1719207590829,22.92,124.32,124.24,6.6295]
[1719207591143,22.92,124.32,124.25,0.34]
[1719207591818,23.08915336,124.36,124.25,0.34]
[1719207592020,23.08915336,124.36,124.24,6.6295]
[1719207592239,23.08915336,124.36,124.25,0.17]
[1719207592736,23.08915336,124.36,124.24,6.6295]
[1719207592922,22.92,124.33,124.24,6.6295]
[1719207594222,22.92,124.33,124.25,0.17]
[1719207594424,23.08915336,124.36,124.25,0.34]
[1719207595131,23.08915336,124.36,124.26,0.17]
[1719207595323,23.08915336,124.36,124.25,0.34]
[1719207595725,45.0,124.35,124.24,6.6295]
[1719207596040,22.92,124.34,124.24,6.6295]
[1719207596236,45.0,124.33,124.24,6.6295]
[1719207597434,22.92,124.34,124.24,6.6295]
[1719207598128,22.92,124.34,124.25,0.17]
[1719207598324,23.08915336,124.36,124.25,0.34]
[1719207598527,23.08915336,124.36,124.26,22.9353]
[1719207598751,45.0,124.35,124.26,22.9353]
[1719207603236,45.0,124.35,124.3,0.5101]
[1719207606123,6.49975336,124.36,124.3,0.5101]
[1719207606327,45.0,124.35,124.3,0.5101]
[1719207606758,67.92,124.35,124.3,0.5101]
[1719207608154,45.0,124.35,124.3,0.5101]
[1719207608352,29.35743421,124.38,124.3,0.5101]
[1719207609762,6.43743421,124.38,124.3,0.5101]
[1719207609933,67.92,124.37,124.3,0.5101]
[1719207610433,22.92,124.34,124.3,0.5101]
[1719207610742,19.63,124.31,124.3,0.5101]
[1719207613066,19.63,124.33,124.3,0.5101]
[1719207614763,45.0,124.37,124.3,0.5101]
[1719207614933,45.0,124.38,124.3,0.5101]
[1719207615139,19.63,124.38,124.3,0.5101]
[1719207615348,19.63,124.37,124.31,6.4075]
[1719207616247,22.9353,124.42,124.31,6.4075]
[1719207616437,19.63,124.38,124.31,6.4075]
[1719207616833,19.63,124.38,124.32,16.4221]
[1719207617037,19.63,124.39,124.32,16.4221]
[1719207617642,19.63,124.4,124.32,16.4221]
[1719207617855,0.8462089,124.43,124.32,16.4221]
[1719207618163,19.63,124.41,124.32,16.4221]
[1719207618573,7.33342863,124.43,124.32,16.4221]
[1719207618739,20.4762089,124.43,124.37,6.3307]
[1719207619066,0.8462089,124.43,124.37,6.3307]
[1719207619452,0.8462089,124.43,124.38,0.34]
[1719207619842,19.63,124.48,124.39,21.3]
[1719207620042,19.63,124.51,124.41,6.2561]
[1719207620242,19.63,124.51,124.42,0.17]
[1719207620537,19.63,124.51,124.42,0.34]
[1719207620761,22.84,124.54,124.42,0.34]
[1719207621265,22.84,124.54,124.41,6.2561]
[1719207621443,22.84,124.54,124.41,6.4261]
[1719207621757,22.84,124.54,124.41,6.2561]
[1719207621963,37.8839,124.54,124.41,6.2561]
[1719207622153,38.34666645,124.54,124.41,6.2561]
[1719207624957,45.0,124.49,124.41,6.2561]
[1719207625464,22.84,124.45,124.38,6.5628]
[1719207625654,22.84,124.45,124.35,16.4567]
[1719207625854,45.0,124.44,124.35,16.4567]
[1719207626264,6.1116,124.49,124.35,16.4567]
[1719207626471,22.84,124.49,124.36,5.6284]
[1719207626771,22.84,124.5,124.37,5.7982]
[1719207626953,22.84,124.5,124.37,0.34]
[1719207627261,22.84,124.5,124.38,0.17]
[1719207627569,22.84,124.5,124.38,0.34]
[1719207628573,22.84,124.5,124.39,6.5628]
[1719207629369,45.0,124.49,124.39,6.5628]
[1719207629966,22.84,124.46,124.39,6.5628]
[1719207630146,45.0,124.45,124.39,6.5628]
[1719207630350,45.0,124.49,124.39,6.5628]
[1719207630550,29.3938325,124.5,124.39,6.5628]
[1719207632168,45.0,124.49,124.39,6.5628]
[1719207634176,15.50666645,124.54,124.41,6.5072]
[1719207634390,0.46276645,124.54,124.45,15.0145]
[1719207634561,0.46276645,124.54,124.47,6.5072]
[1719207635170,15.506667,124.6,124.48,20.831]
[1719207635367,22.84,124.62,124.49,0.17]
[1719207635779,15.506667,124.64,124.5,6.6221]
[1719207635994,22.84,124.66,124.52,20.6595]
[1719207636161,22.84,124.66,124.53,5.961]
[1719207636356,22.84,124.66,124.53,0.34]
[1719207636866,29.22323201,124.67,124.55,5.6201]
[1719207637078,29.22323201,124.67,124.53,0.34]
[1719207638168,29.22323201,124.67,124.54,6.3596]
[1719207639866,0.8462089,124.68,124.55,22.182]
[1719207640081,0.8462089,124.68,124.56,0.17]
[1719207640479,22.84,124.67,124.55,16.3922]
[1719207641567,45.0,124.66,124.55,16.3922]
[1719207642175,22.84,124.64,124.55,16.3922]
[1719207642380,22.84,124.61,124.55,16.3922]
[1719207642576,22.84,124.61,124.54,6.3596]
[1719207642764,22.84,124.62,124.51,15.3427]
[1719207642765,22.84,124.58,124.51,15.3427]
[1719207643177,45.0,124.57,124.51,15.3427]
[1719207643589,44.5,124.57,124.51,15.3427]
[1719207643782,44.5,124.57,124.5,6.578]
[1719207644596,44.5,124.57,124.46,21.7085]
[1719207644597,22.84,124.51,124.46,21.7085]
[1719207644776,22.84,124.51,124.42,6.6154]
[1719207645177,22.84,124.48,124.42,6.6154]
[1719207645475,22.84,124.45,124.4,15.6519]
[1719207645788,45.0,124.44,124.37,6.1181]
[1719207647295,22.84,124.47,124.37,6.1181]
[1719207647992,22.84,124.44,124.37,6.1181]
[1719207648297,22.84,124.41,124.34,15.8029]
[1719207648494,45.0,124.4,124.34,15.8029]
[1719207648679,45.0,124.4,124.32,6.367]
[1719207649677,22.84,124.37,124.3,0.5101]
[1719207649879,45.0,124.36,124.3,0.5101]
[1719207650782,22.84,124.38,124.3,0.5101]
[1719207651174,22.3226,124.49,124.31,0.17]
[1719207651404,22.84,124.43,124.31,5.9709]
[1719207651572,22.84,124.43,124.32,16.6392]
[1719207651769,22.84,124.43,124.33,0.34]
[1719207652701,22.87,124.45,124.34,6.3489]
[1719207653205,22.87,124.45,124.35,5.9688]
[1719207653412,22.87,124.45,124.35,0.34]
[1719207653782,22.87,124.45,124.34,6.3489]
[1719207654676,45.0,124.44,124.34,6.3489]
[1719207655324,22.87,124.42,124.34,6.3489]
[1719207655823,45.0,124.41,124.34,6.3489]
[1719207657193,15.8029,124.49,124.34,6.3489]
[1719207657420,22.87,124.46,124.34,6.3489]
[1719207658098,22.87,124.46,124.35,0.34]
[1719207658435,22.1499585,124.49,124.35,5.969]
[1719207658610,22.1499585,124.49,124.35,0.34]
[1719207658797,6.3470585,124.49,124.35,0.34]
[1719207658997,22.87,124.5,124.35,0.34]
[1719207659233,39.5092,124.5,124.35,0.34]
[1719207659847,45.0,124.49,124.35,0.34]
[1719207659998,45.0,124.49,124.35,0.17]
[1719207660196,45.0,124.49,124.34,6.3489]
[1719207660700,46.01666738,124.5,124.34,6.3489]
[1719207660904,68.88666738,124.5,124.35,0.17]
[1719207661827,68.88666738,124.5,124.37,16.0341]
[1719207662040,29.37746738,124.5,124.39,6.357]
[1719207662196,29.37746738,124.5,124.4,0.17]
[1719207662197,22.87,124.5,124.4,0.17]
[1719207662402,16.0341,124.52,124.4,5.9665]
[1719207662606,16.0341,124.52,124.41,16.0341]
[1719207662907,29.14138571,124.56,124.43,6.357]
[1719207663326,29.14138571,124.56,124.44,0.34]
[1719207663741,22.87,124.56,124.44,0.34]
[1719207664106,22.87,124.56,124.45,15.1979]
[1719207664332,22.87,124.56,124.46,0.34]
[1719207664825,23.7162089,124.68,124.47,6.0912]
[1719207665035,22.87,124.6,124.48,0.34]
[1719207667722,22.87,124.6,124.47,6.0912]
[1719207667924,22.87,124.57,124.47,6.0912]
[1719207668415,45.0,124.56,124.47,6.0912]
[1719207669509,22.87,124.54,124.47,6.0912]
[1719207669823,22.87,124.51,124.45,15.1979]
[1719207670026,45.0,124.5,124.45,15.1979]
[1719207670227,45.0,124.5,124.43,6.2648]
[1719207670426,22.87,124.48,124.43,6.2648]
[1719207670649,45.0,124.47,124.43,6.2648]
[1719207670835,45.0,124.47,124.39,15.6383]
[1719207671355,22.87,124.44,124.39,15.6383]
[1719207671534,45.0,124.43,124.38,6.2648]
[1719207673126,22.87,124.44,124.38,6.2648]
[1719207673437,45.0,124.43,124.38,6.2648]
[1719207673943,22.87,124.44,124.38,6.2648]
[1719207674128,45.0,124.43,124.38,6.2648]
[1719207674329,22.87,124.44,124.38,6.2648]
[1719207674545,52.09207076,124.5,124.38,6.2648]
[1719207674728,45.0,124.49,124.38,6.2648]
[1719207675057,29.22207076,124.5,124.38,6.2648]
[1719207675254,22.87,124.5,124.38,6.2648]
[1719207675448,22.87,124.5,124.39,1.94352507]
[1719207675755,45.74,124.5,124.38,6.2648]
[1719207676342,22.87,124.5,124.39,0.17]
[1719207676553,22.87,124.5,124.39,0.34]
[1719207677648,22.87,124.5,124.39,0.17]
[1719207679134,22.87,124.56,124.4,16.1377]
[1719207679352,29.40703077,124.56,124.41,0.34]
[1719207679554,22.87,124.56,124.42,6.484]
[1719207679739,22.87,124.56,124.43,0.34]
[1719207681347,22.87,124.56,124.44,15.1403]
[1719207681552,45.74,124.62,124.46,6.473]
[1719207681844,22.87,124.59,124.47,0.34]
[1719207683343,45.0,124.58,124.47,0.34]
[1719207684253,22.87,124.59,124.47,0.34]
[1719207684448,29.41243584,124.62,124.48,15.181]
[1719207684647,29.41243584,124.62,124.49,0.34]